Workbook

Sheet Info
B1: شركة كونكورد للخرسانة الجاهزة | J1: A2
B2: م | C2: البيـــــــــــــــــــــــــــان | D2: مدين | E2: دائن | F2: الرصـــــــــيد | G2: التاريخ | H2: ملاحظات | I2: Sheet_Name
B3: 1 | C3: A2 | D3: 416 | E3: 80 | F3: 336 | G3: 2020-02-03 | I3: الصندوق | M3: Choose name then Press Run
B4: 2 | C4: A2 | D4: 206 | E4: 201 | F4: 5 | G4: 2020-02-03 | I4: مصرف أبو ظبى
B5: 3 | C5: A2 | D5: 829 | E5: 75 | F5: 754 | G5: 2020-04-03 | I5: مصرف أبو ظبى
B6: 4 | C6: A2 | D6: 847 | E6: 419 | F6: 428 | I6: الاهلى المتحد
B7: 5 | C7: A2 | D7: 331 | E7: 186 | F7: 145 | G7: 2020-02-03 | I7: الاهلى المتحد
B8: 6 | C8: A2 | D8: 690 | E8: 258 | F8: 432 | G8: 2020-10-03 | I8: الاهلى المتحد
B9: 7 | C9: A2 | D9: 267 | E9: 75 | F9: 192 | I9: المشرق
B10: 8 | C10: A2 | D10: 650 | E10: 139 | F10: 511 | G10: 2020-02-03 | I10: مصر
B11: المجموع | D11: 4236 | E11: 1433 | F11: 2803

Sheet الصندوق
B1: بيــــــــــــــان حركة الخزينة
B2: م | C2: البيـــــــــــــــــــــــــــان | D2: مدين | E2: دائن | F2: الرصـــــــــيد | G2: التاريخ | H2: ملاحظات
B3: 1 | C3: رصيد الخزينة 3/1 صباحا | F3: 500000 | G3: 2020-03-01
B4: 2 | C4: A1 | D4: 727 | E4: 130 | F4: =SUM(F3,D4,E4) -> 500857 | G4: 2020-03-01
B5: 3 | C5: A2 | D5: 416 | E5: 80 | F5: =SUM(F4,D5,E5) -> 501353 | G5: 2020-03-02
B6: 4 | C6: A3 | D6: 924 | E6: 333 | F6: 502610 | G6: 2020-03-02
B7: 5 | C7: A4 | D7: 653 | E7: 206 | F7: 503469 | G7: 2020-03-02
B8: 6 | C8: A5 | D8: 616 | E8: 173 | F8: 504258 | G8: 2020-03-02
B9: 7 | C9: A6 | D9: 118 | E9: 458 | F9: 504834 | G9: 2020-03-02
B10: 8 | C10: A7 | D10: 318 | E10: 127 | F10: 505279 | G10: 2020-03-02 | H10: شامله عموله البنك
B11: 9 | C11: A8 | D11: 651 | E11: 218 | F11: 506148 | G11: 2020-03-02
B12: 10 | C12: A9 | D12: 350 | E12: 221 | F12: 506719 | G12: 2020-03-02
B13: 11 | C13: A10 | D13: 446 | E13: 349 | F13: 507514 | G13: 2020-03-02
B14: 12 | C14: A11 | D14: 268 | E14: 267 | F14: 508049 | G14: 2020-03-02
B15: 13 | C15: A12 | D15: 244 | E15: 257 | F15: 508550 | G15: 2020-03-02
B16: 14 | C16: A13 | D16: 215 | E16: 80 | F16: 508845 | G16: 2020-03-02
B17: 15 | C17: A14 | D17: 697 | E17: 409 | F17: 509951 | G17: 2020-03-02
B18: 16 | C18: A15 | D18: 309 | E18: 150 | F18: 510410 | G18: 2020-03-02
B19: 17 | C19: A16 | D19: 433 | E19: 351 | F19: 511194 | G19: 2020-03-02

Sheet مصرف أبو ظبى
B1: بيــــــــــــــان مصرف أبو ظبى
B2: م | C2: البيــــــــــــــــان | D2: مدين | E2: دائن | F2: الرصيد
C3: رصيد ما قبله 3/1 | F3: 830000
A4: =IF(C4=Info!$B$1,COUNTIF('مصرف أبو ظبى '!$C4:C$724,'مصرف أبو ظبى '!C4),"") ->  | C4: A1 | D4: 670 | E4: 286 | F4: =SUM(F3,D4,E4) -> 830956 | G4: 2020-03-02
A5: =IF(C5=Info!$B$1,COUNTIF('مصرف أبو ظبى '!$C5:C$724,'مصرف أبو ظبى '!C5),"") ->  | C5: A2 | D5: 206 | E5: 201 | F5: =SUM(F4,D5,E5) -> 831363 | G5: 2020-03-02
A6: =IF(C6=Info!$B$1,COUNTIF('مصرف أبو ظبى '!$C6:C$724,'مصرف أبو ظبى '!C6),"") ->  | C6: A3 | D6: 106 | E6: 194 | F6: 831663 | G6: 2020-03-02
A7: =IF(C7=Info!$B$1,COUNTIF('مصرف أبو ظبى '!$C7:C$724,'مصرف أبو ظبى '!C7),"") ->  | C7: A4 | D7: 802 | E7: 62 | F7: 832527
A8: =IF(C8=Info!$B$1,COUNTIF('مصرف أبو ظبى '!$C8:C$724,'مصرف أبو ظبى '!C8),"") ->  | C8: A1 | D8: 338 | E8: 295 | F8: 833160 | G8: 2020-03-10
A9: =IF(C9=Info!$B$1,COUNTIF('مصرف أبو ظبى '!$C9:C$724,'مصرف أبو ظبى '!C9),"") ->  | C9: A6 | D9: 415 | E9: 399 | F9: 833974
A10: =IF(C10=Info!$B$1,COUNTIF('مصرف أبو ظبى '!$C10:C$724,'مصرف أبو ظبى '!C10),"") ->  | C10: A7 | D10: 711 | E10: 331 | F10: 835016 | G10: 2020-03-04
A11: =IF(C11=Info!$B$1,COUNTIF('مصرف أبو ظبى '!$C11:C$724,'مصرف أبو ظبى '!C11),"") ->  | C11: A2 | D11: 829 | E11: 75 | F11: 835920 | G11: 2020-03-04
A12: =IF(C12=Info!$B$1,COUNTIF('مصرف أبو ظبى '!$C12:C$724,'مصرف أبو ظبى '!C12),"") ->  | C12: A9 | D12: 811 | E12: 94 | F12: 836825
A13: =IF(C13=Info!$B$1,COUNTIF('مصرف أبو ظبى '!$C13:C$724,'مصرف أبو ظبى '!C13),"") ->  | C13: A10 | D13: 670 | E13: 224 | F13: 837719 | G13: 2020-03-05 | H13: 272
A14: =IF(C14=Info!$B$1,COUNTIF('مصرف أبو ظبى '!$C14:C$724,'مصرف أبو ظبى '!C14),"") ->  | C14: A11 | D14: 264 | E14: 162 | F14: 838145 | G14: 2020-03-05 | H14: 373
A15: =IF(C15=Info!$B$1,COUNTIF('مصرف أبو ظبى '!$C15:C$724,'مصرف أبو ظبى '!C15),"") ->  | C15: A12 | D15: 824 | E15: 291 | F15: 839260 | G15: 2020-03-05 | H15: 376
A16: =IF(C16=Info!$B$1,COUNTIF('مصرف أبو ظبى '!$C16:C$724,'مصرف أبو ظبى '!C16),"") ->  | C16: A13 | D16: 579 | E16: 418 | F16: 840257 | G16: 2020-03-05 | H16: 377
A17: =IF(C17=Info!$B$1,COUNTIF('مصرف أبو ظبى '!$C17:C$724,'مصرف أبو ظبى '!C17),"") ->  | C17: A14 | D17: 115 | E17: 395 | F17: 840767 | G17: 2020-03-05 | H17: 378
A18: =IF(C18=Info!$B$1,COUNTIF('مصرف أبو ظبى '!$C18:C$724,'مصرف أبو ظبى '!C18),"") ->  | C18: A15 | D18: 572 | E18: 472 | F18: 841811
A19: =IF(C19=Info!$B$1,COUNTIF('مصرف أبو ظبى '!$C19:C$724,'مصرف أبو ظبى '!C19),"") ->  | C19: A16 | D19: 217 | E19: 312 | F19: 842340
C86: غطاء خطاب ضمان دفعة مقدمة قرية منشأة الامير | E86: =D80*0.05 -> 0 | F86: =F85+D86-E86 -> 0
C87: عمولات اصدار خطابات ضمان الدفعة المقدمة الفرايحة 3مشروعات | E87: 210553.25 | F87: -210553.25
F88: -210553.25
F89: -210553.25
F90: -210553.25
F91: -210553.25
F92: -210553.25

Sheet الاهلى المتحد
B1: بيــــــــــــــان بنك الاهلى المتحد
B2: م | C2: البيــــــــــــــــان | D2: مدين | E2: دائن | F2: الرصيد
C3: رصيد ما قبله 3/1 | F3: 582000
A4: =IF(C4=Info!$C$3,COUNTIF('مصرف أبو ظبى '!$C4:C$724,'مصرف أبو ظبى '!C4),"") ->  | B4: 1 | C4: A1 | D4: 808 | E4: 349 | F4: =SUM(F3,D4,E4) -> 583157 | G4: 2020-03-02
A5: =IF(C5=Info!$C$3,COUNTIF('مصرف أبو ظبى '!$C5:C$724,'مصرف أبو ظبى '!C5),"") -> 2 | C5: A2 | D5: 847 | E5: 419 | F5: =SUM(F4,D5,E5) -> 584423
A6: =IF(C6=Info!$C$3,COUNTIF('مصرف أبو ظبى '!$C6:C$724,'مصرف أبو ظبى '!C6),"") ->  | C6: A3 | D6: 373 | E6: 210 | F6: 585006 | G6: 2020-03-05 | H6: 6803316
A7: =IF(C7=Info!$C$3,COUNTIF('مصرف أبو ظبى '!$C7:C$724,'مصرف أبو ظبى '!C7),"") ->  | C7: A4 | D7: 133 | E7: 83 | F7: 585222
A8: =IF(C8=Info!$C$3,COUNTIF('مصرف أبو ظبى '!$C8:C$724,'مصرف أبو ظبى '!C8),"") ->  | C8: A5 | D8: 768 | E8: 429 | F8: 586419 | G8: 2020-03-08 | H8: 6803317
A9: =IF(C9=Info!$C$3,COUNTIF('مصرف أبو ظبى '!$C9:C$724,'مصرف أبو ظبى '!C9),"") ->  | C9: A6 | D9: 461 | E9: 81 | F9: 586961
A10: =IF(C10=Info!$C$3,COUNTIF('مصرف أبو ظبى '!$C10:C$724,'مصرف أبو ظبى '!C10),"") ->  | C10: A7 | D10: 125 | E10: 404 | F10: 587490 | G10: 2020-03-11
C11: A8 | D11: 853 | E11: 314 | F11: 588657
A12: =IF(C12=Info!$C$3,COUNTIF('مصرف أبو ظبى '!$C12:C$724,'مصرف أبو ظبى '!C12),"") ->  | C12: A9 | D12: 150 | E12: 424 | F12: 589231 | G12: 2020-03-02
A13: =IF(C13=Info!$C$3,COUNTIF('مصرف أبو ظبى '!$C13:C$724,'مصرف أبو ظبى '!C13),"") -> 1 | C13: A2 | D13: 331 | E13: 186 | F13: 589748 | G13: 2020-03-02
A14: =IF(C14=Info!$C$3,COUNTIF('مصرف أبو ظبى '!$C14:C$724,'مصرف أبو ظبى '!C14),"") ->  | C14: A14 | D14: 808 | E14: 283 | F14: 590839 | G14: 2020-03-02
A15: =IF(C15=Info!$C$3,COUNTIF('مصرف أبو ظبى '!$C15:C$724,'مصرف أبو ظبى '!C15),"") ->  | C15: A12 | D15: 774 | E15: 339 | F15: 591952
A16: =IF(C16=Info!$C$3,COUNTIF('مصرف أبو ظبى '!$C16:C$724,'مصرف أبو ظبى '!C16),"") -> 1 | C16: A2 | D16: 690 | E16: 258 | F16: 592900 | G16: 2020-03-10
A17: =IF(C17=Info!$C$3,COUNTIF('مصرف أبو ظبى '!$C17:C$724,'مصرف أبو ظبى '!C17),"") ->  | C17: A14 | D17: 906 | E17: 62 | F17: 593868
A18: =IF(C18=Info!$C$3,COUNTIF('مصرف أبو ظبى '!$C18:C$724,'مصرف أبو ظبى '!C18),"") ->  | C18: A15 | D18: 213 | E18: 112 | F18: 594193 | G18: 2020-03-04
A19: =IF(C19=Info!$C$3,COUNTIF('مصرف أبو ظبى '!$C19:C$724,'مصرف أبو ظبى '!C19),"") ->  | C19: A16 | D19: 999 | E19: 70 | F19: 595262 | G19: 2020-03-04

Sheet المشرق
B1: بيــــــــــــــان بنك الاهلى المتحد
B2: م | C2: البيــــــــــــــــان | D2: مدين | E2: دائن | F2: الرصيد
C3: رصيد ما قبله 3/1 | F3: 582000
A4: =IF(C4=Info!$C$3,COUNTIF('مصرف أبو ظبى '!$C4:C$724,'مصرف أبو ظبى '!C4),"") ->  | B4: 1 | C4: A1 | D4: 405 | E4: 175 | F4: =SUM(F3,D4,E4) -> 582580 | G4: 2020-03-02
A5: =IF(C5=Info!$C$3,COUNTIF('مصرف أبو ظبى '!$C5:C$724,'مصرف أبو ظبى '!C5),"") -> 2 | C5: A2 | D5: 267 | E5: 75 | F5: =SUM(F4,D5,E5) -> 582922
A6: =IF(C6=Info!$C$3,COUNTIF('مصرف أبو ظبى '!$C6:C$724,'مصرف أبو ظبى '!C6),"") ->  | C6: A3 | D6: 782 | E6: 158 | F6: 583862 | G6: 2020-03-05 | H6: 6803316
A7: =IF(C7=Info!$C$3,COUNTIF('مصرف أبو ظبى '!$C7:C$724,'مصرف أبو ظبى '!C7),"") ->  | C7: A4 | D7: 701 | E7: 207 | F7: 584770
A8: =IF(C8=Info!$C$3,COUNTIF('مصرف أبو ظبى '!$C8:C$724,'مصرف أبو ظبى '!C8),"") ->  | C8: A5 | D8: 171 | E8: 239 | F8: 585180 | G8: 2020-03-08 | H8: 6803317
A9: =IF(C9=Info!$C$3,COUNTIF('مصرف أبو ظبى '!$C9:C$724,'مصرف أبو ظبى '!C9),"") ->  | C9: A6 | D9: 410 | E9: 436 | F9: 586026
A10: =IF(C10=Info!$C$3,COUNTIF('مصرف أبو ظبى '!$C10:C$724,'مصرف أبو ظبى '!C10),"") ->  | C10: A7 | D10: 932 | E10: 340 | F10: 587298 | G10: 2020-03-11
A11: =IF(C11=Info!$C$3,COUNTIF('مصرف أبو ظبى '!$C11:C$724,'مصرف أبو ظبى '!C11),"") ->  | C11: A8 | D11: 524 | E11: 495 | F11: 588317
A12: =IF(C12=Info!$C$3,COUNTIF('مصرف أبو ظبى '!$C12:C$724,'مصرف أبو ظبى '!C12),"") ->  | C12: A9 | D12: 683 | E12: 340 | F12: 589340 | G12: 2020-03-02
A13: =IF(C13=Info!$C$3,COUNTIF('مصرف أبو ظبى '!$C13:C$724,'مصرف أبو ظبى '!C13),"") ->  | C13: A10 | D13: 738 | E13: 163 | F13: 590241 | G13: 2020-03-02
A14: =IF(C14=Info!$C$3,COUNTIF('مصرف أبو ظبى '!$C14:C$724,'مصرف أبو ظبى '!C14),"") ->  | C14: A11 | D14: 236 | E14: 89 | F14: 590566 | G14: 2020-03-02
A15: =IF(C15=Info!$C$3,COUNTIF('مصرف أبو ظبى '!$C15:C$724,'مصرف أبو ظبى '!C15),"") ->  | C15: A12 | D15: 138 | E15: 259 | F15: 590963
A16: =IF(C16=Info!$C$3,COUNTIF('مصرف أبو ظبى '!$C16:C$724,'مصرف أبو ظبى '!C16),"") ->  | C16: A13 | D16: 387 | E16: 482 | F16: 591832 | G16: 2020-03-10
A17: =IF(C17=Info!$C$3,COUNTIF('مصرف أبو ظبى '!$C17:C$724,'مصرف أبو ظبى '!C17),"") ->  | C17: A14 | D17: 461 | E17: 469 | F17: 592762
A18: =IF(C18=Info!$C$3,COUNTIF('مصرف أبو ظبى '!$C18:C$724,'مصرف أبو ظبى '!C18),"") ->  | C18: A15 | D18: 582 | E18: 316 | F18: 593660 | G18: 2020-03-04
A19: =IF(C19=Info!$C$3,COUNTIF('مصرف أبو ظبى '!$C19:C$724,'مصرف أبو ظبى '!C19),"") ->  | C19: A16 | D19: 775 | E19: 94 | F19: 594529 | G19: 2020-03-04

Sheet مصر
B1: بيــــــــــــــان مصرف أبو ظبى
B2: م | C2: البيــــــــــــــــان | D2: مدين | E2: دائن | F2: الرصيد
C3: رصيد ما قبله 3/1 | F3: 830000
A4: =IF(C4=Info!$B$1,COUNTIF(مصر!$C4:C$724,مصر!C4),"") ->  | C4: A1 | D4: 265 | E4: 451 | F4: =SUM(F3,D4,E4) -> 830716 | G4: 2020-03-02
A5: =IF(C5=Info!$B$1,COUNTIF(مصر!$C5:C$724,مصر!C5),"") ->  | C5: A2 | D5: 650 | E5: 139 | F5: =SUM(F4,D5,E5) -> 831505 | G5: 2020-03-02
A6: =IF(C6=Info!$B$1,COUNTIF(مصر!$C6:C$724,مصر!C6),"") ->  | C6: A3 | D6: 757 | E6: 458 | F6: 832720 | G6: 2020-03-02
A7: =IF(C7=Info!$B$1,COUNTIF(مصر!$C7:C$724,مصر!C7),"") ->  | C7: A4 | D7: 292 | E7: 340 | F7: 833352
A8: =IF(C8=Info!$B$1,COUNTIF(مصر!$C8:C$724,مصر!C8),"") ->  | C8: A5 | D8: 941 | E8: 224 | F8: 834517 | G8: 2020-03-10
A9: =IF(C9=Info!$B$1,COUNTIF(مصر!$C9:C$724,مصر!C9),"") ->  | C9: A6 | D9: 813 | E9: 386 | F9: 835716
A10: =IF(C10=Info!$B$1,COUNTIF(مصر!$C10:C$724,مصر!C10),"") ->  | C10: a55 | D10: 625 | E10: 355 | F10: 836696 | G10: 2020-03-04
A11: =IF(C11=Info!$B$1,COUNTIF(مصر!$C11:C$724,مصر!C11),"") ->  | C11: A8 | D11: 617 | E11: 275 | F11: 837588 | G11: 2020-03-04
A12: =IF(C12=Info!$B$1,COUNTIF(مصر!$C12:C$724,مصر!C12),"") ->  | C12: A9 | D12: 460 | E12: 63 | F12: 838111
A13: =IF(C13=Info!$B$1,COUNTIF(مصر!$C13:C$724,مصر!C13),"") ->  | C13: A10 | D13: 797 | E13: 279 | F13: 839187 | G13: 2020-03-05 | H13: 272
A14: =IF(C14=Info!$B$1,COUNTIF(مصر!$C14:C$724,مصر!C14),"") ->  | C14: A11 | D14: 352 | E14: 438 | F14: 839977 | G14: 2020-03-05 | H14: 373
A15: =IF(C15=Info!$B$1,COUNTIF(مصر!$C15:C$724,مصر!C15),"") ->  | C15: A12 | D15: 388 | E15: 109 | F15: 840474 | G15: 2020-03-05 | H15: 376
A16: =IF(C16=Info!$B$1,COUNTIF(مصر!$C16:C$724,مصر!C16),"") ->  | C16: A13 | D16: 943 | E16: 311 | F16: 841728 | G16: 2020-03-05 | H16: 377
A17: =IF(C17=Info!$B$1,COUNTIF(مصر!$C17:C$724,مصر!C17),"") ->  | C17: A14 | D17: 129 | E17: 143 | F17: 842000 | G17: 2020-03-05 | H17: 378
A18: =IF(C18=Info!$B$1,COUNTIF(مصر!$C18:C$724,مصر!C18),"") ->  | C18: A15 | D18: 242 | E18: 390 | F18: 842632
A19: =IF(C19=Info!$B$1,COUNTIF(مصر!$C19:C$724,مصر!C19),"") ->  | C19: A16 | D19: 209 | E19: 349 | F19: 843190
C76: بيـــــــــــــــــان خاص بالفريحة
C77: البيــــــــــــــــــان | D77: ما تم تحصيله | E77: المصروفات المباشرة | F77: الرصيد | G77: التاريخ
C78: وارد شيك دفعة مقدمة بنى عبس | D78: 4001364 | F78: =D78 -> 4001364
C79: وارد شيك دفعة مقدمة قرية إبراهيم حسن | D79: 7486822 | F79: =F78+D79-E79 -> 11488186
C80: وارد شيك دفعة مقدمة منشأة الامير | D80: 6057918 | F80: =F79+D80-E80 -> 17546104
C81: مصاريف خطابات الضمان الابتدائى 3 مشروعات | E81: 8210 | F81: 17537894
C82: محجوز غطاء ضمان نهائى 3 مشروعات الفرايحة | E82: 877305.2 | F82: 16660588.8
C83: عمولات اصدار خطابات ضمان نهائى الفرايحة 3مشروعات | E83: 140456.84 | F83: 16520131.96
C84: غطاء خطاب ضمان دفعة مقدمة قرية بنى عبس | E84: =D78*0.05 -> 200068.2 | F84: 16320063.76
C85: غطاء خطاب ضمان دفعة مقدمة قرية إبراهيم حسن | E85: =D79*0.05 -> 374341.1 | F85: 15945722.66
C86: غطاء خطاب ضمان دفعة مقدمة قرية منشأة الامير | E86: =D80*0.05 -> 302895.9 | F86: 15642826.76
C87: عمولات اصدار خطابات ضمان الدفعة المقدمة الفرايحة 3مشروعات | E87: 210553.25 | F87: 15432273.51
F88: 15432273.51
F89: 15432273.51
F90: 15432273.51
F91: 15432273.51
F92: 15432273.51
